bitfinex/quotes_BTCUSD_20210402
["timestamp","ask_amount","ask_price","bid_price","bid_amount"]
[1617388895774,5.87260757,59150.0,59149.0,0.1]
[1617388897583,6.87260757,59150.0,59149.0,0.1]
[1617388898389,1.0,59136.0,59129.0,0.005]
[1617388898588,1.0,59133.0,59129.0,0.005]
[1617388898812,4.588639,59130.0,59129.0,0.005]
[1617388899009,6.24480757,59130.0,59129.0,0.005]
[1617388899212,0.387639,59128.0,59110.0,0.5]
[1617388899418,0.387639,59124.0,59105.0,0.253694]
[1617388899609,4.427639,59122.0,59105.0,0.253694]
[1617388899807,5.427639,59122.0,59105.0,0.253694]
[1617388900013,6.71880757,59122.0,59105.0,0.253694]
[1617388900409,6.87680757,59122.0,59099.0,0.001286]
[1617388900607,6.87680757,59122.0,59099.0,0.255006]
[1617388900808,6.87680757,59122.0,59100.0,0.00303724]
[1617388901009,6.61860757,59122.0,59100.0,0.00303724]
[1617388901641,6.61860757,59122.0,59105.0,0.253692]
[1617388902041,6.77860757,59122.0,59105.0,0.253692]
[1617388902239,6.77860757,59122.0,59099.0,0.001286]
[1617388903041,6.77860757,59122.0,59099.0,0.255005]
[1617388903239,6.77860757,59122.0,59100.0,0.00303724]
[1617388903441,6.77860757,59122.0,59100.0,0.10303724]
[1617388904708,5.77860757,59122.0,59121.0,0.1099914]
[1617388905112,5.61860757,59122.0,59121.0,0.1099914]
[1617388905315,5.62715721,59122.0,59121.0,0.1099914]
[1617388906710,5.63715721,59122.0,59121.0,0.1099914]
[1617388911412,5.63695721,59122.0,59121.0,0.1099914]
[1617388911817,5.63695721,59122.0,59121.0,0.1049914]
[1617388912636,6.63695721,59122.0,59121.0,0.1049914]
[1617388912838,6.78995721,59122.0,59121.0,0.1049914]
[1617388913239,5.78995721,59122.0,59121.0,0.1049914]
[1617388913436,5.63695721,59122.0,59121.0,0.1049914]
[1617388915868,5.63695721,59122.0,59121.0,0.0214914]
[1617388916067,6.63695721,59122.0,59121.0,0.0214914]
[1617388916267,5.63695721,59122.0,59121.0,0.0214914]
[1617388916469,6.79195721,59122.0,59121.0,0.0214914]
[1617388918696,7.79195721,59122.0,59121.0,0.0214914]
[1617388918899,6.84195721,59122.0,59121.0,0.0214914]
[1617388919496,6.84195721,59122.0,59121.0,0.0164914]
[1617388920751,8.48075721,59122.0,59121.0,0.0164914]
[1617388921150,8.98818721,59122.0,59121.0,0.0164914]
[1617388921549,9.95748721,59122.0,59121.0,0.0164914]
[1617388921953,8.90748721,59122.0,59121.0,0.0164914]
[1617388922576,9.90748721,59122.0,59121.0,0.0164914]
[1617388925176,8.90748721,59122.0,59121.0,0.0164914]
[1617388926379,9.90748721,59122.0,59121.0,0.0164914]
[1617388926977,8.90748721,59122.0,59121.0,0.0164914]
[1617388928191,8.90945938,59122.0,59121.0,0.0164914]
[1617388928591,8.75445938,59122.0,59121.0,0.0164914]
[1617388931430,9.91620234,59122.0,59121.0,0.0164914]
[1617388931628,10.36502017,59122.0,59121.0,0.0164914]
[1617388931824,9.36502017,59122.0,59121.0,0.0164914]
[1617388932224,9.3679791,59122.0,59121.0,0.0164914]
[1617388932423,9.4179791,59122.0,59121.0,0.0164914]
[1617388932624,10.4179791,59122.0,59121.0,0.0164914]
[1617388932824,10.41502017,59122.0,59121.0,0.0164914]
[1617388933251,9.41502017,59122.0,59121.0,0.0164914]
[1617388933450,9.41797913,59122.0,59121.0,0.0164914]
[1617388933651,8.96718913,59122.0,59121.0,0.0164914]
[1617388934252,9.96423017,59122.0,59121.0,0.0164914]
[1617388934450,8.96423017,59122.0,59121.0,0.0164914]
[1617388934712,2.10813017,59122.0,59121.0,0.0164914]
[1617388934910,2.10813017,59122.0,59121.0,4.5181214]
[1617388935110,1.18589117,59122.0,59121.0,4.8585864]
[1617388935301,1.18589117,59122.0,59121.0,4.9585864]
[1617388935726,1.18589117,59122.0,59121.0,5.35853014]
[1617388935931,0.67846117,59122.0,59121.0,6.09353014]
[1617388936127,0.67846117,59122.0,59121.0,2.30718314]
[1617388936329,0.67846117,59122.0,59121.0,1.8172394]
[1617388936527,0.67846117,59122.0,59121.0,1.0822394]
[1617388936926,0.67846117,59122.0,59121.0,2.0122394]
[1617388937128,0.67846117,59122.0,59121.0,1.9122394]
[1617388937325,0.67846117,59122.0,59121.0,2.3472394]
[1617388937525,0.67846117,59122.0,59121.0,2.3972394]
[1617388937924,0.67846117,59122.0,59121.0,3.1672394]
[1617388938349,0.67846117,59122.0,59121.0,2.3972394]
[1617388938749,0.67846117,59122.0,59121.0,1.4672394]
[1617388939356,0.67846117,59122.0,59121.0,1.4172394]
[1617388939951,0.67846117,59122.0,59121.0,4.30023492]
[1617388940553,0.67846117,59122.0,59121.0,1.91023492]
[1617388940755,0.67846117,59122.0,59121.0,1.5072394]
[1617388940970,0.67846117,59122.0,59121.0,3.3272394]
[1617388941572,0.67846117,59122.0,59121.0,1.5072394]
[1617388941773,0.67846117,59122.0,59121.0,1.91023492]
[1617388941979,0.67846117,59122.0,59121.0,1.5072394]
[1617388942377,0.67846117,59122.0,59121.0,1.91023492]
[1617388942976,0.67846117,59122.0,59121.0,1.5072394]
[1617388943794,0.67846117,59122.0,59121.0,2.1672394]
[1617388944996,0.67846117,59122.0,59121.0,1.5072394]
[1617388946429,0.67846117,59122.0,59121.0,1.0722394]
[1617388947828,0.67846117,59122.0,59121.0,2.6122394]
[1617388948028,0.67846117,59122.0,59121.0,3.1722394]
[1617388948437,0.67846117,59122.0,59121.0,1.5422394]
[1617388948855,0.67846117,59122.0,59121.0,1.8422394]
[1617388950157,0.67846117,59122.0,59121.0,1.0722394]
[1617388950562,0.67846117,59122.0,59121.0,0.5201444]
[1617388950769,0.67846117,59122.0,59121.0,0.4701444]
[1617388950966,0.67846117,59122.0,59121.0,0.1164914]
[1617388951161,1.06611217,59122.0,59121.0,0.1164914]
[1617388951407,1.49390372,59122.0,59121.0,0.1164914]
[1617388952808,5.53390372,59122.0,59121.0,0.1164914]
[1617388955210,5.26611217,59122.0,59121.0,0.1164914]
[1617388965811,1.22611217,59122.0,59121.0,0.1164914]
[1617388966610,4.57611217,59122.0,59121.0,0.1164914]
[1617388969662,5.14611217,59122.0,59121.0,0.1164914]
[1617388970466,4.57611217,59122.0,59121.0,0.1164914]
[1617388970666,5.26611217,59122.0,59121.0,0.1164914]
[1617388971264,4.57611217,59122.0,59121.0,0.1164914]
[1617388971465,5.26611217,59122.0,59121.0,0.1014914]
[1617388972889,5.36611217,59122.0,59121.0,0.1014914]
[1617388973892,5.66611217,59122.0,59121.0,0.1014914]
[1617388976916,5.82811217,59122.0,59121.0,0.1014914]
[1617388977744,5.66611217,59122.0,59121.0,0.1014914]
[1617388977943,5.7055058,59122.0,59121.0,0.1014914]
[1617388979545,5.66906313,59122.0,59121.0,0.1014914]
[1617388980974,5.23280213,59122.0,59121.0,0.1014914]
[1617388981178,4.93280213,59122.0,59121.0,0.1014914]
[1617388981774,4.92985117,59122.0,59121.0,0.1014914]
[1617388983397,4.93181899,59122.0,59121.0,0.1014914]
[1617388984198,4.92985117,59122.0,59121.0,0.1014914]
[1617388984598,5.6218189,59122.0,59121.0,0.0934914]
[1617388984795,4.9318189,59122.0,59121.0,0.0934914]
[1617388985621,4.92985117,59122.0,59121.0,0.0934914]
[1617388985823,4.93181863,59122.0,59121.0,0.0934914]
[1617388986022,4.92985117,59122.0,59121.0,0.0934914]
[1617388986426,5.62181874,59122.0,59121.0,0.0934914]
[1617388987627,5.61985117,59122.0,59121.0,0.0934914]
[1617388987823,4.92985117,59122.0,59121.0,0.0934914]
[1617388988444,5.61985117,59122.0,59121.0,0.0934914]
[1617388989844,1.57985117,59122.0,59121.0,0.0934914]
[1617388990054,1.32611217,59122.0,59121.0,0.0934914]
[1617388990446,1.16611217,59122.0,59121.0,0.0934914]
[1617388990653,0.77846117,59122.0,59121.0,0.0934914]
[1617388990877,0.77846117,59122.0,59121.0,0.1939564]
[1617388991476,0.77846117,59122.0,59121.0,0.1889564]
[1617388992075,0.77846117,59122.0,59121.0,0.4426054]
[1617388992275,0.77846117,59122.0,59121.0,1.4226054]
[1617388992476,0.77846117,59122.0,59121.0,0.7676054]
[1617388992886,0.77846117,59122.0,59121.0,0.1884914]
[1617388993085,1.16611217,59122.0,59121.0,0.1884914]
[1617388993276,5.06611217,59122.0,59121.0,0.1884914]
[1617388993501,5.70111217,59122.0,59121.0,0.0884914]
[1617388995105,5.70079993,59122.0,59121.0,0.0884914]
[1617388996754,1.80079993,59122.0,59121.0,0.0884914]
[1617388996957,1.16579993,59122.0,59121.0,0.0884914]
[1617388997355,4.39579993,59122.0,59121.0,0.0884914]
[1617388997953,4.3995429,59122.0,59121.0,0.0884914]
[1617388998356,5.0345429,59122.0,59121.0,0.0884914]
[1617389001787,1.8045429,59122.0,59121.0,0.0884914]
[1617389001990,1.1695429,59122.0,59121.0,0.0884914]
[1617389002191,2.3445429,59122.0,59121.0,0.08822932]
[1617389002585,1.3295429,59122.0,59121.0,0.08822932]
[1617389003387,1.1545429,59122.0,59121.0,0.08822932]
[1617389004200,2.4845429,59122.0,59121.0,0.08822932]
[1617389004401,1.1545429,59122.0,59121.0,0.08822932]
[1617389005204,3.5945429,59122.0,59121.0,0.08822932]
[1617389005409,3.7395429,59122.0,59121.0,0.08822932]
[1617389005603,1.2995429,59122.0,59121.0,0.08822932]
[1617389006203,2.0395429,59122.0,59121.0,0.08822932]
[1617389006407,1.2995429,59122.0,59121.0,0.08822932]
[1617389007235,1.1545429,59122.0,59121.0,0.08822932]
[1617389011345,1.3245429,59122.0,59121.0,0.08822932]
[1617389012747,1.1545429,59122.0,59121.0,0.08822932]
[1617389012950,1.15651178,59122.0,59121.0,0.08822932]
[1617389013549,1.1545429,59122.0,59121.0,0.08822932]
[1617389014147,1.3245429,59122.0,59121.0,0.08822932]
[1617389015545,1.2245429,59122.0,59121.0,0.08822932]
[1617389018148,1.0545429,59122.0,59121.0,0.08822932]
[1617389021572,0.6668919,59122.0,59121.0,0.08822932]
[1617389022804,0.6418919,59122.0,59121.0,0.08822932]
[1617389023607,0.6418919,59122.0,59121.0,0.18822932]
[1617389024408,1.0295429,59122.0,59121.0,0.18822932]
[1617389024607,1.0295429,59122.0,59121.0,0.28822932]
[1617389024811,1.1845429,59122.0,59121.0,0.18822932]
[1617389025828,1.0295429,59122.0,59121.0,0.18822932]
[1617389029254,1.1845429,59122.0,59121.0,0.18822932]
[1617389031884,2.2145429,59122.0,59121.0,0.18822932]
[1617389032684,2.1945429,59122.0,59121.0,0.18822932]
[1617389032904,1.1645429,59122.0,59121.0,0.18822932]
[1617389033703,1.1445429,59122.0,59121.0,0.18822932]
[1617389033903,2.1345429,59122.0,59121.0,0.18822932]
[1617389034504,1.1445429,59122.0,59121.0,0.18822932]
[1617389034909,0.75886223,59122.0,59121.0,0.18822932]
[1617389035311,0.6018919,59122.0,59121.0,0.28869432]
[1617389035933,0.5018919,59122.0,59121.0,0.28869432]
[1617389036134,0.5018919,59122.0,59121.0,0.54235132]
[1617389036333,0.5018919,59122.0,59121.0,0.86235132]
[1617389036935,0.6018919,59122.0,59121.0,0.86235132]
[1617389038571,0.6018919,59122.0,59121.0,0.91235132]
[1617389038971,0.6018919,59122.0,59121.0,0.86235132]
[1617389042440,0.6018919,59122.0,59121.0,0.90235132]
[1617389042639,0.6018919,59122.0,59121.0,1.20898132]
[1617389042840,0.5018919,59122.0,59121.0,5.31010132]
[1617389043040,0.5018919,59122.0,59121.0,5.71004506]
[1617389043238,0.5018919,59122.0,59121.0,5.31010132]
[1617389043437,0.5018919,59122.0,59121.0,5.71004506]
[1617389045436,0.49274517,59122.0,59121.0,5.71004506]
[1617389046540,0.88937452,59122.0,59121.0,5.71004506]
[1617389046737,0.58937452,59122.0,59121.0,5.71004506]
[1617389050361,0.58937452,59122.0,59121.0,5.31010132]
[1617389050564,0.58937452,59122.0,59121.0,5.71004506]
[1617389051187,0.58937452,59122.0,59121.0,5.76004506]
[1617389053390,0.58937452,59122.0,59121.0,5.75504506]
[1617389055080,0.58937452,59122.0,59121.0,5.34092506]
[1617389055683,0.58712129,59122.0,59121.0,4.94098132]
[1617389055880,0.58712129,59122.0,59121.0,5.04235132]
[1617389056082,0.58712129,59122.0,59121.0,5.44229506]
[1617389056280,0.58712129,59122.0,59121.0,5.68893506]
[1617389056480,0.58712129,59122.0,59121.0,5.98893506]
[1617389056680,0.58712129,59122.0,59121.0,6.04139506]
[1617389056879,0.58712129,59122.0,59121.0,6.09139506]
[1617389058480,0.58712129,59122.0,59121.0,6.25239506]
[1617389059883,0.58712129,59122.0,59121.0,6.20239506]
[1617389060086,0.58712129,59122.0,59121.0,5.35245132]
[1617389060288,0.58712129,59122.0,59121.0,5.40329506]
[1617389060885,0.58712129,59122.0,59121.0,5.20229506]
[1617389061486,0.58712129,59122.0,59121.0,5.25229506]
[1617389061690,0.58712129,59122.0,59121.0,5.35229506]
[1617389062491,0.58712129,59122.0,59121.0,5.73686506]
[1617389062893,0.58712129,59122.0,59121.0,5.53686506]
[1617389063390,0.58712129,59122.0,59121.0,5.49686506]
[1617389065421,0.58712129,59122.0,59121.0,5.69686506]
[1617389066217,0.58712129,59122.0,59121.0,5.65071506]
[1617389067040,0.58712129,59122.0,59121.0,5.45071506]
[1617389068242,0.58712129,59122.0,59121.0,5.65071506]
[1617389070634,0.58712129,59122.0,59121.0,5.45071506]
[1617389071232,0.58712129,59122.0,59121.0,5.35229506]
[1617389073533,0.58212129,59122.0,59121.0,5.35229506]
[1617389073935,0.57212129,59122.0,59121.0,5.35229506]
[1617389074336,0.57212129,59122.0,59121.0,5.55229506]
[1617389075140,0.57212129,59122.0,59121.0,5.35229506]
[1617389075343,0.57212129,59122.0,59121.0,1.31229506]
[1617389075543,0.57212129,59122.0,59121.0,0.59188632]
[1617389075743,0.57212129,59122.0,59121.0,0.44188632]
[1617389077752,0.57212129,59122.0,59121.0,0.43688632]
[1617389078350,0.57212129,59122.0,59121.0,0.53688632]
[1617389081001,0.57212129,59122.0,59121.0,0.28322932]
[1617389081002,2.57547229,59122.0,59121.0,0.28322932]
[1617389081201,1.57547229,59122.0,59121.0,0.28322932]
[1617389081599,1.57547229,59122.0,59121.0,0.18322932]
[1617389081804,1.67547229,59122.0,59121.0,0.28322932]
[1617389082804,1.67547229,59122.0,59121.0,0.18322932]
[1617389083006,1.67547229,59122.0,59121.0,0.28322932]
[1617389083203,1.67547229,59122.0,59121.0,0.18322932]
[1617389085679,1.66842816,59122.0,59121.0,0.18322932]
[1617389086677,1.357651,59121.0,59120.0,0.042286]
[1617389086878,1.49710737,59121.0,59120.0,0.042286]
[1617389088978,1.59710737,59121.0,59120.0,0.042286]
[1617389090477,0.90710737,59121.0,59120.0,0.042286]
[1617389092886,1.30373672,59121.0,59120.0,0.042286]
[1617389102626,1.30353632,59121.0,59120.0,0.042286]
[1617389102828,1.29353632,59121.0,59120.0,0.042286]
[1617389103631,0.91608572,59121.0,59120.0,0.042286]
[1617389103859,0.63608572,59121.0,59120.0,0.152954]
[1617389104059,0.63608572,59121.0,59120.0,3.562954]
[1617389104257,0.63608572,59121.0,59120.0,3.462954]
[1617389104654,0.63608572,59121.0,59120.0,4.102954]
[1617389105056,0.65586957,59121.0,59120.0,0.892954]
[1617389105457,0.65586957,59121.0,59120.0,0.302954]
[1617389108086,0.65586957,59121.0,59120.0,1.162954]
[1617389108283,0.65586957,59121.0,59120.0,0.302954]
[1617389110299,0.65586957,59121.0,59120.0,0.252954]
[1617389110900,0.65586957,59121.0,59120.0,2.952954]
[1617389111302,0.65586957,59121.0,59120.0,3.547954]
[1617389111738,0.64586957,59121.0,59120.0,3.547954]
[1617389113335,0.64586957,59121.0,59120.0,3.597954]
[1617389113534,0.24924022,59121.0,59120.0,3.25132465]
[1617389114135,0.23924022,59121.0,59120.0,3.25132465]
[1617389115266,0.23924022,59121.0,59120.0,3.35132465]
[1617389116667,0.22924022,59121.0,59120.0,3.35132465]
[1617389119098,0.22924022,59121.0,59120.0,0.745]
[1617389119298,0.22924022,59121.0,59120.0,0.15]
[1617389119511,0.22924022,59121.0,59120.0,0.1]
[1617389119908,0.22924022,59121.0,59120.0,0.95]
[1617389120306,0.22924022,59121.0,59120.0,1.245]
[1617389122537,0.22924022,59121.0,59120.0,0.395]
[1617389124749,0.22924022,59121.0,59120.0,1.045]
[1617389125349,0.22924022,59121.0,59120.0,0.395]
[1617389125752,0.22924022,59121.0,59120.0,1.105]
[1617389126154,0.22924022,59121.0,59120.0,0.395]
[1617389126357,0.22924022,59121.0,59120.0,0.1]
[1617389126754,0.22924022,59121.0,59120.0,0.78]
[1617389127381,0.22924022,59121.0,59120.0,0.1]
[1617389127584,0.22924022,59121.0,59120.0,0.265]
[1617389128383,0.22924022,59121.0,59120.0,0.465]
[1617389128783,0.22924022,59121.0,59120.0,1.545]
[1617389128985,0.22924022,59121.0,59120.0,1.345]
[1617389129387,0.22924022,59121.0,59120.0,1.9706499]
[1617389129583,0.22924022,59121.0,59120.0,1.7706499]
[1617389130703,0.22924022,59121.0,59120.0,2.4906499]
[1617389131112,0.20945637,59121.0,59120.0,1.7706499]
[1617389131306,0.20945637,59121.0,59120.0,1.395]
[1617389131508,0.20945637,59121.0,59120.0,0.6906499]
[1617389131709,0.20945637,59121.0,59120.0,0.315]
[1617389132108,0.20945637,59121.0,59120.0,0.31325842]
[1617389132761,0.20945637,59121.0,59120.0,0.14825842]
[1617389132960,0.20945637,59121.0,59120.0,0.1]
[1617389133160,0.59710837,59121.0,59119.0,0.303678]
[1617389133357,0.60110837,59121.0,59120.0,0.1]
[1617389133563,0.60110837,59121.0,59119.0,0.253678]
[1617389133564,1.60110837,59121.0,59119.0,0.253678]
[1617389133760,0.387652,59120.0,59117.0,0.338164]
[1617389133961,0.387652,59118.0,59117.0,0.338164]
[1617389134359,0.69710837,59118.0,59117.0,0.338164]
[1617389134558,0.88710837,59118.0,59117.0,0.338164]
[1617389134759,2.35710837,59118.0,59117.0,0.338164]
[1617389134962,2.45710837,59118.0,59117.0,0.338164]
[1617389135157,0.98710837,59118.0,59117.0,0.338164]
[1617389135765,1.80710837,59118.0,59117.0,0.338164]
[1617389136165,0.98710837,59118.0,59117.0,0.338164]
[1617389136366,0.78710837,59118.0,59117.0,0.338164]
[1617389137768,1.51710837,59118.0,59117.0,0.338164]
[1617389138380,1.71710837,59118.0,59117.0,0.338164]
[1617389140181,1.51710837,59118.0,59117.0,0.338164]
[1617389140379,1.71710837,59118.0,59117.0,0.338164]
[1617389141020,1.51710837,59118.0,59117.0,0.338164]
[1617389141220,0.78710837,59118.0,59117.0,0.338164]
[1617389142223,0.78972326,59118.0,59117.0,0.338164]
[1617389146069,2.26972326,59118.0,59117.0,0.33642242]
[1617389146267,2.46972326,59118.0,59112.0,0.1474]
[1617389146668,0.375,59117.0,59112.0,0.1474]
[1617389146968,0.487652,59113.0,59112.0,0.1474]
[1617389147165,0.59972326,59113.0,59112.0,0.1474]
[1617389147366,0.99472326,59113.0,59112.0,0.1474]
[1617389147965,0.99472326,59113.0,59112.0,0.401103]
[1617389148392,0.99472326,59113.0,59112.0,0.501103]
[1617389150594,0.99472326,59113.0,59112.0,0.2474]
[1617389150794,1.01454966,59113.0,59112.0,0.1474]
[1617389152017,1.21454966,59113.0,59112.0,0.1474]
[1617389152619,3.05854966,59113.0,59112.0,0.1474]
[1617389153023,1.21854966,59113.0,59112.0,0.1474]
[1617389153223,1.01854966,59113.0,59112.0,0.1474]
[1617389153418,2.26854966,59113.0,59112.0,0.1474]
[1617389153640,1.01454966,59113.0,59112.0,0.1474]
[1617389159494,0.99336628,59113.0,59112.0,0.1474]
[1617389160096,0.99336628,59113.0,59112.0,0.14565842]
[1617389160902,1.02098403,59113.0,59111.0,0.1]
[1617389161106,0.757652,59112.0,59111.0,0.1]
[1617389161304,0.49710837,59112.0,59110.0,0.253711]
[1617389161521,0.10945637,59112.0,59110.0,0.253711]
[1617389162924,0.1,59111.0,59110.0,0.253711]
[1617389163322,0.20945637,59111.0,59110.0,0.253711]
[1617389164154,0.40945637,59111.0,59110.0,0.253711]
[1617389164756,0.20945637,59111.0,59110.0,0.253711]
[1617389166971,0.20945637,59111.0,59106.0,0.1]
[1617389167169,0.21405637,59111.0,59106.0,0.1]
[1617389167365,0.21405637,59111.0,59104.0,0.1]
[1617389167569,0.0054,59109.0,59103.0,0.002]
[1617389167767,0.11485637,59109.0,59105.0,0.205]
[1617389167968,0.1,59107.0,59105.0,0.205]
[1617389168168,0.20945637,59107.0,59105.0,0.405]
[1617389168370,0.20945637,59107.0,59106.0,2.235]
[1617389168569,0.20945637,59107.0,59106.0,2.335]
[1617389169388,0.20945637,59107.0,59106.0,2.588732]
[1617389169590,0.20945637,59107.0,59106.0,0.568732]
[1617389169993,0.20945637,59107.0,59106.0,0.468732]
[1617389170391,0.20945637,59107.0,59106.0,1.538732]
[1617389170589,0.20945637,59107.0,59106.0,0.463732]
[1617389171191,0.20945637,59107.0,59106.0,0.763732]
[1617389171388,0.20945637,59107.0,59106.0,0.563732]
[1617389171591,0.20945637,59107.0,59106.0,0.763732]
[1617389172023,0.20945637,59107.0,59106.0,0.563732]
[1617389172230,1.22341793,59107.0,59106.0,0.463732]
[1617389172427,0.58341793,59107.0,59106.0,0.253732]
[1617389172627,0.78341793,59107.0,59106.0,0.253732]
[1617389172826,1.17106993,59107.0,59106.0,0.253732]
[1617389173224,0.79710837,59107.0,59106.0,0.253732]
[1617389173625,1.21806837,59107.0,59103.0,0.1]
[1617389173824,0.83481637,59107.0,59103.0,0.1]
[1617389174028,0.527652,59106.0,59102.0,0.1474]
[1617389174424,0.63710837,59106.0,59102.0,0.1474]
[1617389174647,0.00174158,59103.0,59102.0,0.1474]
[1617389174849,0.33119795,59103.0,59102.0,0.1474]
[1617389175049,0.33119795,59103.0,59101.0,0.1]
[1617389175648,0.32945637,59103.0,59101.0,0.1]
[1617389175861,0.632652,59102.0,59101.0,0.1]
[1617389176053,0.74210837,59102.0,59101.0,0.1]
[1617389176252,0.74210837,59102.0,59099.0,0.001286]
[1617389176452,0.35445637,59102.0,59099.0,0.001286]
[1617389176852,0.01988759,59101.0,59099.0,0.001286]
[1617389177054,0.01988759,59101.0,59100.0,0.7]
[1617389177288,0.12934396,59101.0,59100.0,0.8]
[1617389177689,0.12934396,59101.0,59100.0,1.053754]
[1617389178286,0.12934396,59101.0,59100.0,0.753754]
[1617389178488,0.12934396,59101.0,59100.0,0.853754]
[1617389178688,0.12934396,59101.0,59100.0,0.753754]
[1617389179489,0.50330552,59101.0,59100.0,0.753754]
[1617389179693,0.50330552,59101.0,59100.0,0.5]
[1617389180106,1.15095752,59101.0,59100.0,0.5]
[1617389180405,4.42095752,59101.0,59100.0,0.5]
[1617389180598,4.04699596,59101.0,59100.0,0.5]
[1617389182210,5.43791432,59101.0,59100.0,0.5]
[1617389182410,5.60191432,59101.0,59100.0,0.5]
[1617389183619,4.60191432,59101.0,59100.0,0.5]
[1617389183819,4.43791432,59101.0,59100.0,0.5]
[1617389184218,5.09791432,59101.0,59100.0,0.5]
[1617389185451,4.43791432,59101.0,59100.0,0.5]
[1617389186752,5.43791432,59101.0,59100.0,0.5]
[1617389188983,6.20791432,59101.0,59100.0,0.49825842]
[1617389189379,4.43791432,59101.0,59100.0,0.49825842]
[1617389190924,4.43291432,59101.0,59100.0,0.49825842]
[1617389191326,4.42891432,59101.0,59100.0,0.49825842]
[1617389197159,1.15891432,59101.0,59100.0,0.49825842]
[1617389197359,0.77699596,59101.0,59100.0,0.49825842]
[1617389197964,2.49699596,59101.0,59100.0,0.49825842]
[1617389198158,2.87891432,59101.0,59100.0,0.49825842]
[1617389198371,2.87841432,59101.0,59100.0,0.49825842]
[1617389198569,2.94604432,59101.0,59100.0,0.49825842]
[1617389199569,2.94604432,59101.0,59100.0,1.38148774]
[1617389199972,2.14462596,59101.0,59100.0,1.38148774]
[1617389200173,0.77797738,59101.0,59100.0,1.38148774]
[1617389200376,0.23032538,59101.0,59100.0,1.58648774]
[1617389200772,0.22934396,59101.0,59100.0,1.38148774]
[1617389201003,2.05699596,59101.0,59100.0,1.38148774]
[1617389201397,2.30699596,59101.0,59100.0,1.38148774]
[1617389202002,2.30797738,59101.0,59100.0,1.38148774]
[1617389202203,4.46099596,59101.0,59100.0,1.38148774]
[1617389202405,5.64731432,59101.0,59100.0,1.38148774]
[1617389202605,5.76080432,59101.0,59100.0,1.38148774]
[1617389202802,5.92780432,59101.0,59100.0,1.38148774]
[1617389203001,8.53074681,59101.0,59100.0,1.38148774]
[1617389203204,8.69745929,59101.0,59100.0,1.38148774]
[1617389203634,8.69549844,59101.0,59100.0,1.38148774]
[1617389204032,8.95131167,59101.0,59100.0,1.38148774]
[1617389204231,8.95131167,59101.0,59100.0,0.38148774]
[1617389204434,8.94935144,59101.0,59100.0,0.38148774]
[1617389204635,9.46894273,59101.0,59100.0,0.38148774]
[1617389205031,9.39935144,59101.0,59100.0,0.38148774]
[1617389205438,0.64,59099.0,59097.0,1.374e-05]
[1617389205671,0.64,59099.0,59094.0,0.00066]
[1617389205672,4.8097518,59096.0,59094.0,0.00066]
[1617389205871,6.9637518,59096.0,59094.0,0.00066]
[1617389206066,7.79094461,59096.0,59094.0,0.00066]
[1617389206267,8.00040098,59096.0,59094.0,0.00066]
[1617389207066,8.10040098,59096.0,59094.0,0.00066]
[1617389207266,8.44040098,59096.0,59094.0,0.00066]
[1617389207475,8.42081817,59096.0,59094.0,0.00066]
[1617389207668,8.44040235,59096.0,59094.0,0.00066]
[1617389208268,8.42081817,59096.0,59094.0,0.00066]
[1617389208470,6.150652,59095.0,59094.0,4e-05]
[1617389208669,7.53687036,59095.0,59094.0,4e-05]
[1617389208900,8.17351219,59095.0,59094.0,4e-05]
[1617389209099,8.67351219,59095.0,59094.0,4e-05]
[1617389209295,8.77351219,59095.0,59094.0,4e-05]
[1617389209495,8.75393673,59095.0,59094.0,4e-05]
[1617389209697,8.75393673,59095.0,59075.0,0.00088]
[1617389209900,6.3520998,59094.0,59088.0,0.0001]
[1617389210098,3.997652,59089.0,59088.0,0.0001]
[1617389210297,5.74226837,59089.0,59088.0,0.0001]
[1617389210896,6.33226837,59089.0,59088.0,0.0001]
[1617389211298,6.17226837,59089.0,59088.0,0.0001]
[1617389211510,6.32726837,59089.0,59088.0,0.0001]
[1617389211706,6.32726837,59089.0,59083.0,0.00066]
[1617389211909,5.84300711,59088.0,59076.0,0.00066]
[1617389212112,0.0048,59083.0,59075.0,0.00062]
[1617389212307,0.0052,59081.0,59075.0,0.00062]
[1617389212510,0.547652,59080.0,59075.0,0.00062]
[1617389212708,0.92907036,59080.0,59075.0,0.00062]
[1617389212906,1.03852673,59080.0,59075.0,0.00062]
[1617389214526,0.387652,59078.0,59075.0,0.00015126]
[1617389214925,0.38141836,59077.0,59075.0,0.00015126]
[1617389215131,0.68391637,59077.0,59075.0,0.00015126]
[1617389215329,0.185,59076.0,59075.0,0.00015126]
[1617389215527,0.29445637,59076.0,59075.0,0.00015126]
[1617389215727,1.92352673,59076.0,59075.0,0.00015126]
[1617389215927,1.11779673,59076.0,59075.0,0.00015126]
[1617389216851,1.11779673,59076.0,59072.0,0.25477]
[1617389217052,3.257652,59075.0,59072.0,0.25146126]
[1617389217250,3.36710837,59075.0,59072.0,0.25146126]
[1617389217449,0.93710837,59075.0,59072.0,0.25146126]
[1617389217649,0.235,59074.0,59072.0,0.25146126]
[1617389217853,0.235,59074.0,59072.0,0.24646126]
[1617389218053,0.34445637,59074.0,59072.0,0.24646126]
[1617389218253,0.10945637,59074.0,59072.0,0.24146126]
[1617389218454,0.10945637,59074.0,59072.0,0.29146126]
[1617389219052,0.10945637,59074.0,59072.0,0.24146126]
[1617389219881,0.10945637,59074.0,59073.0,2.7820998]
[1617389220079,0.10945637,59074.0,59073.0,2.9320998]
[1617389220278,0.10945637,59074.0,59073.0,3.5420998]
[1617389220476,0.10945637,59074.0,59073.0,3.16]
[1617389220894,0.10945637,59074.0,59073.0,3.07]
[1617389221493,0.10945637,59074.0,59073.0,0.67]
[1617389221694,0.10945637,59074.0,59073.0,1.53]
[1617389222108,0.10945637,59074.0,59073.0,1.58]
[1617389222309,0.10945637,59074.0,59073.0,1.62]
[1617389222508,0.10945637,59074.0,59073.0,0.1]
[1617389222711,0.10945637,59074.0,59073.0,0.85]
[1617389222910,0.14108612,59074.0,59073.0,1.115]
[1617389223109,0.14108612,59074.0,59073.0,1.215]
[1617389223311,0.14108612,59074.0,59073.0,1.21]
[1617389224413,0.14108612,59074.0,59073.0,0.365]
[1617389224826,0.14108612,59074.0,59073.0,0.1]
[1617389225224,0.14108612,59074.0,59072.0,0.24146126]
[1617389227028,0.13608612,59074.0,59072.0,0.24146126]
[1617389227662,0.13608612,59074.0,59072.0,0.34146126]
[1617389227861,0.13608612,59074.0,59073.0,0.21]
[1617389228062,0.13608612,59074.0,59073.0,3.2]
[1617389228259,0.14113112,59074.0,59073.0,3.2]
[1617389228460,0.14113112,59074.0,59073.0,3.24]
[1617389228661,0.14113112,59074.0,59073.0,0.35]
[1617389228863,0.14113112,59074.0,59073.0,0.31]